[Event "British Rapidplay Championship 2023"]
[Site "Mercure Bradford, Bankfield Hotel"]
[Date "2023.04.16"]
[Round "10.13"]
[White "Brencher, Paul"]
[Black "Surtees, Mike J"]
[Result "0-1"]
[TimeControl "15 minutes plus 10 seconds per move"]
[WhiteElo "1929"]
[BlackElo "2111"]

1. d4 {[%clk 00:15:17]} {[%emt 00:00:02]} c6 {[%clk 00:15:18]} {[%emt
00:00:02]} 2. Nc3 {[%clk 00:15:20]} {[%emt 00:00:08]} d5 {[%clk 00:15:19]}
{[%emt 00:00:08]} 3. Bf4 {[%clk 00:15:27]} {[%emt 00:00:03]} Bf5 {[%clk
00:14:25]} {[%emt 00:01:03]} 4. f3 {[%clk 00:15:35]} {[%emt 00:00:04]} Nf6
{[%clk 00:14:19]} {[%emt 00:00:15]} 5. Qd2 {[%clk 00:15:44]} {[%emt 00:00:02]}
e6 {[%emt 00:00:10]} 6. g4 {[%clk 00:15:53]} Bg6 {[%clk 00:14:27]} {[%emt
00:00:03]} 7. h4 {[%clk 00:16:02]} h5 {[%clk 00:14:24]} {[%emt 00:00:13]} 8. g5
{[%clk 00:16:11]} {[%emt 00:00:01]} Nfd7 {[%clk 00:14:31]} {[%emt 00:00:02]} 9.
e4 {[%clk 00:14:35]} {[%emt 00:01:47]} Bb4 {[%clk 00:13:54]} {[%emt 00:00:46]}
10. O-O-O {[%clk 00:14:33]} {[%emt 00:00:12]} Qa5 {[%clk 00:13:21]} {[%emt
00:00:43]} 11. Nge2 {[%clk 00:11:54]} {[%emt 00:02:49]} Nb6 {[%clk 00:13:18]}
{[%emt 00:00:13]} 12. Kb1 {[%clk 00:08:38]} {[%emt 00:03:27]} Nc4 {[%clk
00:12:06]} {[%emt 00:01:21]} 13. Qc1 {[%clk 00:07:48]} {[%emt 00:01:00]} Nd7
{[%clk 00:12:09]} {[%emt 00:00:08]} 14. Bg2 {[%clk 00:04:25]} {[%emt 00:03:33]}
O-O {[%clk 00:11:35]} {[%emt 00:00:43]} 15. Rd3 {[%clk 00:01:55]} {[%emt
00:02:41]} b5 {[%clk 00:09:54]} {[%emt 00:01:51]} 16. Nd1 {[%clk 00:01:54]}
{[%emt 00:00:10]} Bd6 {[%clk 00:08:35]} {[%emt 00:01:28]} 17. Bxd6 {[%clk
00:01:17]} {[%emt 00:00:48]} Nxd6 {[%clk 00:08:43]} {[%emt 00:00:02]} 18. Nf2
{[%clk 00:01:23]} {[%emt 00:00:04]} e5 {[%clk 00:07:53]} {[%emt 00:01:00]} 19.
dxe5 {[%clk 00:01:09]} {[%emt 00:00:25]} Nxe5 {[%clk 00:07:54]} {[%emt
00:00:08]} 20. Ra3 {[%clk 00:01:14]} {[%emt 00:00:05]} Qb6 {[%clk 00:07:59]}
{[%emt 00:00:05]} 21. Qe3 {[%clk 00:00:28]} {[%emt 00:00:57]} Nec4 {[%clk
00:07:55]} {[%emt 00:00:13]} 22. Qxb6 {[%clk 00:00:25]} {[%emt 00:00:13]} Nxa3+
{[%clk 00:08:03]} {[%emt 00:00:02]} 23. bxa3 {[%clk 00:00:35]} {[%emt
00:00:01]} axb6 {[%clk 00:08:09]} {[%emt 00:00:03]} 24. exd5 {[%clk 00:00:34]}
{[%emt 00:00:10]} c5 {[%clk 00:07:14]} {[%emt 00:01:05]} 25. Nf4 {[%clk
00:00:14]} {[%emt 00:00:31]} Bf5 {[%clk 00:06:35]} {[%emt 00:00:48]} 26. Nxh5
{[%clk 00:00:11]} {[%emt 00:00:14]} Rxa3 {[%clk 00:06:32]} {[%emt 00:00:13]} 27.
Ng3 {[%clk 00:00:20]} {[%emt 00:00:02]} Bxc2+ {[%clk 00:06:24]} {[%emt
00:00:18]} 28. Kxc2 {[%clk 00:00:11]} {[%emt 00:00:19]} Rxa2+ {[%clk 00:06:32]}
{[%emt 00:00:02]} 29. Kd3 {[%clk 00:00:17]} {[%emt 00:00:05]} Rxf2 {[%clk
00:06:32]} {[%emt 00:00:09]} 30. Rg1 {[%clk 00:00:23]} {[%emt 00:00:04]} Ra8
{[%clk 00:06:36]} {[%emt 00:00:06]} 31. Ke3 {[%clk 00:00:30]} {[%emt 00:00:03]}
Rb2 {[%clk 00:06:33]} {[%emt 00:00:12]} 32. h5 {[%clk 00:00:38]} {[%emt
00:00:03]} Ra4 {[%clk 00:06:15]} {[%emt 00:00:28]} 33. Ne2 {[%clk 00:00:25]}
{[%emt 00:00:24]} Nf5+ {[%clk 00:05:56]} {[%emt 00:00:28]} 34. Kf2 {[%clk
00:00:14]} {[%emt 00:00:21]} Raa2 {[%clk 00:05:48]} {[%emt 00:00:18]} 35. Re1
{[%clk 00:00:22]} {[%emt 00:00:02]} b4 {[%clk 00:05:40]} {[%emt 00:00:17]} 36.
Bh3 {[%clk 00:00:14]} {[%emt 00:00:18]} Nd4 {[%clk 00:05:29]} {[%emt 00:00:20]}
37. Bf1 {[%clk 00:00:23]} {[%emt 00:00:01]} Rd2 {[%clk 00:04:56]} {[%emt
00:00:43]} 38. Ke3 {[%clk 00:00:14]} {[%emt 00:00:20]} Nxe2 {[%clk 00:04:05]}
{[%emt 00:01:01]} 39. Rxe2 {[%clk 00:00:11]} {[%emt 00:00:12]} Rxe2+ {[%clk
00:04:08]} {[%emt 00:00:07]} 40. Bxe2 {[%clk 00:00:21]} b3 {[%clk 00:03:18]}
{[%emt 00:01:00]} 41. Bc4 {[%clk 00:00:30]} Ra4 {[%clk 00:03:00]} {[%emt
00:00:27]} 42. Bxb3 {[%clk 00:00:32]} {[%emt 00:00:08]} Ra3 {[%clk 00:03:08]}
{[%emt 00:00:02]} 43. d6 {[%clk 00:00:35]} {[%emt 00:00:07]} Rxb3+ {[%clk
00:03:16]} {[%emt 00:00:02]} 44. Ke4 {[%clk 00:00:45]} {[%emt 00:00:01]} Rb4+
{[%clk 00:03:20]} {[%emt 00:00:05]} 45. Kd5 {[%clk 00:00:26]} {[%emt 00:00:30]}
Rd4+ {[%clk 00:03:24]} {[%emt 00:00:05]} 46. Kc6 {[%clk 00:00:35]} {[%emt
00:00:02]} c4 {[%clk 00:03:27]} {[%emt 00:00:06]} 47. h6 {[%clk 00:00:44]}
{[%emt 00:00:01]} c3 {[%clk 00:03:25]} {[%emt 00:00:12]} 48. d7 {[%clk
00:00:40]} {[%emt 00:00:15]} c2 {[%clk 00:03:27]} {[%emt 00:00:07]} 49. g6
{[%clk 00:00:48]} {[%emt 00:00:02]} c1=Q+ {[%clk 00:03:32]} {[%emt 00:00:05]}
50. Kb7 {[%clk 00:00:58]} {[%emt 00:00:01]} Rxd7+ {[%clk 00:03:39]} {[%emt
00:00:03]} 51. Ka6 {[%clk 00:01:00]} {[%emt 00:00:08]} Qa3+ {[%clk 00:03:38]}
{[%emt 00:00:09]} 52. Kb5 {[%clk 00:01:08]} {[%emt 00:00:02]} Qc5+ {[%clk
00:03:42]} {[%emt 00:00:06]} 53. Ka4 {[%clk 00:01:13]} {[%emt 00:00:06]} Rd4+
{[%clk 00:03:40]} {[%emt 00:00:11]} 54. Kb3 {[%clk 00:01:22]} {[%emt 00:00:01]}
Qc4+ {[%clk 00:03:45]} {[%emt 00:00:06]} 55. Kb2 {[%clk 00:01:32]} {[%emt
00:00:01]} Rd2+ {[%clk 00:03:51]} {[%emt 00:00:03]} 56. Kb1 {[%clk 00:01:39]}
{[%emt 00:00:03]} Qf1# {[%clk 00:03:57]} {[%emt 00:00:03]} 0-1

[Event "British Rapidplay Championship 2023"]
[Site "Mercure Bradford, Bankfield Hotel"]
[Date "2023.04.16"]
[Round "10.14"]
[White "Sivanandan, Bodhana"]
[Black "Mazek, Marek"]
[Result "0-1"]
[TimeControl "15 minutes plus 10 seconds per move"]
[WhiteElo "1561"]
[BlackElo "2052"]

1. e4 {[%clk 00:15:17]} {[%emt 00:00:03]} c5 {[%clk 00:15:19]} {[%emt
00:00:01]} 2. Nc3 {[%clk 00:15:26]} {[%emt 00:00:02]} d6 {[%clk 00:15:06]}
{[%emt 00:00:22]} 3. f4 {[%clk 00:15:34]} {[%emt 00:00:02]} Nc6 {[%clk
00:15:10]} {[%emt 00:00:06]} 4. Nf3 {[%clk 00:15:39]} {[%emt 00:00:05]} g6
{[%clk 00:15:16]} {[%emt 00:00:04]} 5. a4 {[%clk 00:15:47]} {[%emt 00:00:02]}
Bg7 {[%clk 00:15:23]} {[%emt 00:00:03]} 6. Bb5 {[%clk 00:15:54]} {[%emt
00:00:03]} Bd7 {[%clk 00:15:32]} {[%emt 00:00:01]} 7. d3 {[%clk 00:16:01]}
{[%emt 00:00:03]} e6 {[%clk 00:15:39]} {[%emt 00:00:03]} 8. O-O {[%clk
00:15:49]} {[%emt 00:00:22]} Nge7 {[%clk 00:15:48]} {[%emt 00:00:01]} 9. Qe1
{[%clk 00:15:15]} {[%emt 00:00:44]} O-O {[%clk 00:15:43]} {[%emt 00:00:15]} 10.
Bc4 {[%clk 00:14:49]} {[%emt 00:00:36]} Nd4 {[%clk 00:14:20]} {[%emt 00:01:33]}
11. Nxd4 {[%clk 00:14:15]} {[%emt 00:00:44]} cxd4 {[%clk 00:14:17]} {[%emt
00:00:13]} 12. Ne2 {[%clk 00:13:59]} {[%emt 00:00:26]} e5 {[%clk 00:14:19]}
{[%emt 00:00:08]} 13. Qg3 {[%clk 00:12:00]} {[%emt 00:02:09]} Be6 {[%clk
00:13:30]} {[%emt 00:00:59]} 14. Bxe6 {[%clk 00:09:58]} {[%emt 00:02:12]} fxe6
{[%clk 00:13:38]} {[%emt 00:00:02]} 15. Bd2 {[%clk 00:10:05]} {[%emt 00:00:03]}
Qd7 {[%clk 00:12:45]} {[%emt 00:01:03]} 16. fxe5 {[%clk 00:08:48]} {[%emt
00:01:28]} Bxe5 {[%clk 00:12:48]} {[%emt 00:00:07]} 17. Qh3 {[%clk 00:08:06]}
{[%emt 00:00:51]} Nc6 {[%clk 00:12:10]} {[%emt 00:00:48]} 18. c3 {[%clk
00:06:26]} {[%emt 00:01:51]} Rae8 {[%clk 00:10:19]} {[%emt 00:02:00]} 19. Bh6
{[%clk 00:05:06]} {[%emt 00:01:30]} Rxf1+ {[%clk 00:10:22]} {[%emt 00:00:07]}
20. Rxf1 {[%clk 00:05:14]} {[%emt 00:00:03]} Bg7 {[%clk 00:10:25]} {[%emt
00:00:04]} 21. Bxg7 {[%clk 00:04:29]} {[%emt 00:00:56]} Qxg7 {[%clk 00:10:32]}
{[%emt 00:00:04]} 22. Qg3 {[%clk 00:04:17]} {[%emt 00:00:22]} dxc3 {[%clk
00:10:19]} {[%emt 00:00:23]} 23. bxc3 {[%clk 00:04:14]} {[%emt 00:00:13]} Qe7
{[%clk 00:09:07]} {[%emt 00:01:21]} 24. Nf4 {[%clk 00:03:54]} {[%emt 00:00:30]}
Rf8 {[%clk 00:07:24]} {[%emt 00:01:54]} 25. d4 {[%clk 00:03:07]} {[%emt
00:00:57]} e5 {[%clk 00:06:39]} {[%emt 00:00:56]} 26. Nd5 {[%clk 00:01:39]}
{[%emt 00:01:38]} Rxf1+ {[%clk 00:06:46]} {[%emt 00:00:01]} 27. Kxf1 {[%clk
00:01:48]} {[%emt 00:00:02]} Qf8+ {[%clk 00:06:45]} {[%emt 00:00:11]} 28. Qf2
{[%clk 00:01:07]} {[%emt 00:00:51]} Qxf2+ {[%clk 00:06:49]} {[%emt 00:00:06]}
29. Kxf2 {[%clk 00:01:16]} {[%emt 00:00:01]} exd4 {[%clk 00:06:57]} {[%emt
00:00:02]} 30. cxd4 {[%clk 00:01:24]} {[%emt 00:00:02]} Nxd4 {[%clk 00:07:03]}
{[%emt 00:00:04]} 31. Ne7+ {[%clk 00:01:33]} {[%emt 00:00:02]} Kf7 {[%clk
00:07:06]} {[%emt 00:00:06]} 32. Nc8 {[%clk 00:01:40]} {[%emt 00:00:04]} Ke6
{[%clk 00:04:48]} {[%emt 00:02:27]} 33. Nxa7 {[%clk 00:01:27]} {[%emt
00:00:23]} Nb3 {[%clk 00:04:23]} {[%emt 00:00:34]} 34. Ke3 {[%clk 00:00:50]}
{[%emt 00:00:48]} Nc5 {[%clk 00:04:20]} {[%emt 00:00:13]} 35. a5 {[%clk
00:00:55]} {[%emt 00:00:06]} Nb3 {[%clk 00:04:27]} {[%emt 00:00:02]} 36. Nc8
{[%clk 00:01:02]} {[%emt 00:00:03]} Nxa5 {[%clk 00:04:28]} {[%emt 00:00:10]} 37.
Nb6 {[%clk 00:01:10]} Nc6 {[%clk 00:04:03]} {[%emt 00:00:34]} 38. g3 {[%clk
00:01:08]} {[%emt 00:00:13]} Ne5 {[%clk 00:03:59]} {[%emt 00:00:14]} 39. h3
{[%clk 00:01:12]} {[%emt 00:00:06]} Nd7 {[%clk 00:03:58]} {[%emt 00:00:11]} 40.
Nd5 {[%clk 00:01:15]} {[%emt 00:00:07]} Nf6 {[%clk 00:03:41]} {[%emt 00:00:27]}
41. Nf4+ {[%clk 00:01:16]} {[%emt 00:00:09]} Kd7 {[%clk 00:03:46]} {[%emt
00:00:03]} 42. Kd4 {[%clk 00:01:24]} {[%emt 00:00:04]} Kc6 {[%clk 00:03:17]}
{[%emt 00:00:39]} 43. g4 {[%clk 00:01:21]} {[%emt 00:00:13]} g5 {[%clk
00:02:32]} {[%emt 00:00:56]} 44. Ne6 {[%clk 00:01:15]} {[%emt 00:00:15]} h6
{[%clk 00:02:37]} {[%emt 00:00:05]} 45. Nd8+ {[%clk 00:01:20]} {[%emt
00:00:05]} Kc7 {[%clk 00:02:36]} {[%emt 00:00:11]} 46. Nf7 {[%clk 00:01:22]}
{[%emt 00:00:09]} Ng8 {[%clk 00:02:32]} {[%emt 00:00:14]} 47. e5 {[%clk
00:01:22]} {[%emt 00:00:09]} dxe5+ {[%clk 00:02:37]} {[%emt 00:00:05]} 48. Nxe5
{[%clk 00:01:28]} {[%emt 00:00:04]} Ne7 {[%clk 00:01:49]} {[%emt 00:00:58]} 49.
Nf7 {[%clk 00:01:13]} {[%emt 00:00:25]} Ng8 {[%clk 00:00:50]} {[%emt 00:01:09]}
50. Kd5 {[%clk 00:00:45]} {[%emt 00:00:39]} Kd7 {[%clk 00:00:45]} {[%emt
00:00:13]} 51. Ne5+ {[%clk 00:00:47]} {[%emt 00:00:09]} Kc7 {[%clk 00:00:54]}
{[%emt 00:00:01]} 52. Nf7 {[%clk 00:00:47]} {[%emt 00:00:10]} b6 {[%clk
00:00:50]} {[%emt 00:00:15]} 53. Ne5 {[%clk 00:00:48]} {[%emt 00:00:09]} Nf6+
{[%clk 00:00:34]} {[%emt 00:00:26]} 54. Ke6 {[%clk 00:00:43]} {[%emt 00:00:14]}
Ne4 {[%clk 00:00:43]} {[%emt 00:00:01]} 55. Nf7 {[%clk 00:00:47]} {[%emt
00:00:06]} Nf2 {[%clk 00:00:48]} {[%emt 00:00:05]} 56. Nxh6 {[%clk 00:00:47]}
{[%emt 00:00:10]} Nxh3 {[%clk 00:00:56]} {[%emt 00:00:02]} 57. Kd5 {[%clk
00:00:56]} {[%emt 00:00:02]} Kd7 {[%clk 00:00:54]} {[%emt 00:00:11]} 58. Nf7
{[%clk 00:00:58]} {[%emt 00:00:07]} Nf4+ {[%clk 00:00:36]} {[%emt 00:00:29]} 59.
Ke5 {[%clk 00:00:47]} {[%emt 00:00:22]} Nh3 {[%clk 00:00:26]} {[%emt 00:00:19]}
60. Kd5 {[%clk 00:00:44]} {[%emt 00:00:13]} Kc7 {[%clk 00:00:34]} {[%emt
00:00:03]} 61. Ne5 {[%clk 00:00:44]} {[%emt 00:00:09]} Kb7 {[%clk 00:00:38]}
{[%emt 00:00:06]} 62. Kc4 {[%clk 00:00:42]} {[%emt 00:00:12]} Ka6 {[%clk
00:00:42]} {[%emt 00:00:05]} 63. Kb4 {[%clk 00:00:48]} {[%emt 00:00:05]} Nf4
{[%clk 00:00:36]} {[%emt 00:00:15]} 64. Nf7 {[%clk 00:00:49]} {[%emt 00:00:10]}
Ne6 {[%clk 00:00:43]} {[%emt 00:00:03]} 65. Ne5 {[%clk 00:00:52]} {[%emt
00:00:08]} b5 {[%clk 00:00:40]} {[%emt 00:00:13]} 66. Nd7 {[%clk 00:00:45]}
{[%emt 00:00:16]} Nd4 {[%clk 00:00:37]} {[%emt 00:00:13]} 67. Nc5+ {[%clk
00:00:41]} {[%emt 00:00:14]} Kb6 {[%clk 00:00:43]} {[%emt 00:00:03]} 68. Nd7+
{[%clk 00:00:47]} {[%emt 00:00:06]} Kc6 {[%clk 00:00:25]} {[%emt 00:00:26]} 69.
Ne5+ {[%clk 00:00:49]} {[%emt 00:00:09]} Kb6 {[%clk 00:00:28]} {[%emt
00:00:07]} 70. Nd7+ {[%clk 00:00:57]} {[%emt 00:00:02]} Ka6 {[%clk 00:00:36]}
{[%emt 00:00:03]} 71. Nc5+ {[%clk 00:01:04]} {[%emt 00:00:02]} Kb6 {[%clk
00:00:39]} {[%emt 00:00:06]} 72. Nd7+ {[%clk 00:01:11]} {[%emt 00:00:04]} Kc7
{[%clk 00:00:39]} {[%emt 00:00:11]} 73. Ne5 {[%clk 00:01:15]} {[%emt 00:00:06]}
Nc6+ {[%clk 00:00:37]} {[%emt 00:00:11]} 74. Nxc6 {[%clk 00:01:19]} {[%emt
00:00:06]} Kxc6 {[%clk 00:00:46]} {[%emt 00:00:01]} 75. Kb3 {[%clk 00:01:26]}
{[%emt 00:00:03]} Kc5 {[%clk 00:00:54]} {[%emt 00:00:02]} 76. Kc3 {[%clk
00:01:29]} {[%emt 00:00:06]} Kd5 {[%clk 00:01:02]} {[%emt 00:00:02]} 77. Kb4
{[%clk 00:01:38]} {[%emt 00:00:02]} Ke4 {[%clk 00:01:12]} {[%emt 00:00:01]} 78.
Kxb5 {[%clk 00:01:46]} {[%emt 00:00:01]} Kf4 {[%clk 00:01:21]} 79. Kc4 {[%clk
00:01:51]} {[%emt 00:00:05]} Kxg4 {[%clk 00:01:30]} {[%emt 00:00:02]} 80. Kd3
{[%clk 00:02:00]} {[%emt 00:00:01]} Kf3 {[%clk 00:01:39]} 81. Kd2 {[%clk
00:02:04]} {[%emt 00:00:06]} Kf2 {[%clk 00:01:48]} {[%emt 00:00:01]} 82. Kd3
{[%clk 00:02:13]} g4 {[%clk 00:01:57]} {[%emt 00:00:01]} 83. Ke4 {[%clk
00:02:22]} {[%emt 00:00:01]} g3 {[%clk 00:02:07]} 84. Kf5 {[%clk 00:02:30]}
{[%emt 00:00:02]} g2 {[%clk 00:02:16]} 85. Kg4 {[%clk 00:02:30]} {[%emt
00:00:09]} g1=Q+ {[%clk 00:02:24]} {[%emt 00:00:02]} 86. Kh5 {[%clk 00:02:39]}
{[%emt 00:00:02]} Qg7 {[%clk 00:02:30]} {[%emt 00:00:03]} 87. Kh4 {[%clk
00:02:46]} {[%emt 00:00:03]} Kf3 {[%clk 00:02:38]} 88. Kh5 {[%clk 00:02:53]}
{[%emt 00:00:04]} Kf4 {[%clk 00:02:45]} {[%emt 00:00:02]} 89. Kh4 {[%clk
00:03:02]} {[%emt 00:00:02]} Qg4 {[%clk 00:02:54]} 0-1

[Event "British Rapidplay Championship 2023"]
[Site "Mercure Bradford, Bankfield Hotel"]
[Date "2023.04.16"]
[Round "10.16"]
[White "Watson, Phil R"]
[Black "Fava, Lorenzo"]
[Result "1-0"]
[TimeControl "15 minutes plus 10 seconds per move"]
[WhiteElo "2144"]
[BlackElo "1728"]

1. d4 {[%clk 00:15:17]} {[%emt 00:00:03]} g6 {[%clk 00:15:19]} {[%emt
00:00:01]} 2. c4 {[%clk 00:15:23]} {[%emt 00:00:05]} Bg7 {[%clk 00:15:27]} 3.
Nc3 {[%clk 00:15:31]} {[%emt 00:00:02]} d6 {[%clk 00:15:36]} {[%emt 00:00:01]}
4. e4 {[%clk 00:15:39]} {[%emt 00:00:02]} c5 {[%clk 00:15:45]} {[%emt
00:00:01]} 5. d5 {[%clk 00:15:47]} {[%emt 00:00:02]} Bxc3+ {[%clk 00:15:52]}
{[%emt 00:00:03]} 6. bxc3 {[%clk 00:15:56]} {[%emt 00:00:01]} e5 {[%clk
00:16:01]} {[%emt 00:00:01]} 7. g3 {[%clk 00:14:09]} {[%emt 00:01:58]} Qe7
{[%clk 00:15:19]} {[%emt 00:00:51]} 8. Bh3 {[%clk 00:13:50]} {[%emt 00:00:29]}
Bxh3 {[%clk 00:14:12]} {[%emt 00:01:17]} 9. Nxh3 {[%clk 00:13:59]} {[%emt
00:00:01]} Nd7 {[%clk 00:14:19]} {[%emt 00:00:04]} 10. O-O {[%clk 00:13:50]}
{[%emt 00:00:18]} h5 {[%clk 00:13:25]} {[%emt 00:01:04]} 11. Qa4 {[%clk
00:11:45]} {[%emt 00:02:15]} Qd8 {[%clk 00:09:19]} {[%emt 00:04:16]} 12. Ng5
{[%clk 00:10:33]} {[%emt 00:01:22]} Kf8 {[%clk 00:08:22]} {[%emt 00:01:07]} 13.
f4 {[%clk 00:09:13]} {[%emt 00:01:29]} Kg7 {[%clk 00:07:14]} {[%emt 00:01:18]}
14. Rb1 {[%clk 00:08:00]} {[%emt 00:01:24]} Nb6 {[%clk 00:05:51]} {[%emt
00:01:33]} 15. Qc2 {[%clk 00:07:49]} {[%emt 00:00:21]} Nf6 {[%clk 00:04:55]}
{[%emt 00:01:06]} 16. fxe5 {[%clk 00:07:24]} {[%emt 00:00:36]} dxe5 {[%clk
00:05:03]} {[%emt 00:00:01]} 17. Nxf7 {[%clk 00:06:50]} {[%emt 00:00:44]} Qd7
{[%clk 00:04:28]} {[%emt 00:00:45]} 18. Nxh8 {[%clk 00:05:49]} {[%emt
00:01:11]} Rxh8 {[%clk 00:04:36]} {[%emt 00:00:01]} 19. Bg5 {[%clk 00:05:04]}
{[%emt 00:00:56]} Ne8 {[%clk 00:04:45]} {[%emt 00:00:01]} 20. Qf2 {[%clk
00:03:13]} {[%emt 00:02:01]} Nxc4 {[%clk 00:02:31]} {[%emt 00:02:24]} 21. Bf6+
{[%clk 00:03:07]} {[%emt 00:00:16]} Nxf6 {[%clk 00:02:39]} {[%emt 00:00:02]} 22.
Qxf6+ {[%clk 00:03:15]} {[%emt 00:00:01]} Qd8 {[%emt 00:01:08]} 1-0

[Event "British Rapidplay Championship 2023"]
[Site "Mercure Bradford, Bankfield Hotel"]
[Date "2023.04.16"]
[Round "10.17"]
[White "Walker, David J"]
[Black "Cuaresma, Gerald"]
[Result "1-0"]
[TimeControl "15 minutes plus 10 seconds per move"]
[WhiteElo "2250"]
[BlackElo "1741"]

1. c4 {[%clk 00:15:18]} {[%emt 00:00:02]} Nf6 {[%clk 00:15:17]} {[%emt
00:00:03]} 2. Nc3 {[%clk 00:15:27]} {[%emt 00:00:02]} g6 {[%clk 00:15:22]}
{[%emt 00:00:04]} 3. g3 {[%clk 00:15:35]} {[%emt 00:00:02]} Bg7 {[%clk
00:15:31]} {[%emt 00:00:02]} 4. Bg2 {[%clk 00:15:43]} {[%emt 00:00:01]} O-O
{[%clk 00:15:37]} {[%emt 00:00:03]} 5. d4 {[%clk 00:15:52]} {[%emt 00:00:02]}
d6 {[%clk 00:15:40]} {[%emt 00:00:07]} 6. Nf3 {[%clk 00:16:00]} {[%emt
00:00:02]} c5 {[%clk 00:15:31]} {[%emt 00:00:19]} 7. O-O {[%clk 00:16:00]}
{[%emt 00:00:10]} Nc6 {[%clk 00:15:12]} {[%emt 00:00:30]} 8. d5 {[%clk
00:15:16]} {[%emt 00:00:54]} Na5 {[%clk 00:14:55]} {[%emt 00:00:26]} 9. Qd3
{[%clk 00:14:36]} {[%emt 00:00:50]} a6 {[%clk 00:14:33]} {[%emt 00:00:32]} 10.
Rb1 {[%clk 00:14:32]} {[%emt 00:00:14]} b5 {[%clk 00:14:02]} {[%emt 00:00:41]}
11. b3 {[%clk 00:14:31]} {[%emt 00:00:11]} b4 {[%clk 00:14:00]} {[%emt
00:00:12]} 12. Ne4 {[%clk 00:11:26]} {[%emt 00:03:16]} Nxe4 {[%clk 00:14:06]}
{[%emt 00:00:03]} 13. Qxe4 {[%clk 00:11:36]} {[%emt 00:00:01]} Bf5 {[%clk
00:14:14]} {[%emt 00:00:02]} 14. Qh4 {[%clk 00:11:44]} {[%emt 00:00:02]} Bxb1
{[%clk 00:13:57]} {[%emt 00:00:27]} 15. Bg5 {[%clk 00:09:49]} {[%emt 00:02:04]}
Bxa2 {[%clk 00:11:26]} {[%emt 00:02:41]} 16. Bxe7 {[%clk 00:09:49]} {[%emt
00:00:09]} Qc7 {[%clk 00:11:33]} {[%emt 00:00:02]} 17. Ng5 {[%clk 00:08:29]}
{[%emt 00:01:30]} h6 {[%clk 00:11:29]} {[%emt 00:00:14]} 18. Ne4 {[%clk
00:08:37]} {[%emt 00:00:03]} Nb7 {[%clk 00:08:35]} {[%emt 00:03:04]} 19. Nf6+
{[%clk 00:07:18]} {[%emt 00:01:28]} Kh8 {[%clk 00:08:38]} {[%emt 00:00:07]} 20.
Ng4 {[%clk 00:07:14]} {[%emt 00:00:15]} h5 {[%clk 00:07:59]} {[%emt 00:00:49]}
21. Bf6 {[%clk 00:07:03]} {[%emt 00:00:21]} Qd8 {[%clk 00:05:39]} {[%emt
00:02:30]} 22. Bxd8 {[%clk 00:06:32]} {[%emt 00:00:41]} Rfxd8 {[%clk 00:05:06]}
{[%emt 00:00:42]} 23. Ne3 {[%clk 00:06:20]} {[%emt 00:00:21]} Kg8 {[%clk
00:04:54]} {[%emt 00:00:23]} 24. g4 {[%clk 00:04:37]} {[%emt 00:01:53]} hxg4
{[%clk 00:04:39]} {[%emt 00:00:25]} 25. Nxg4 {[%clk 00:04:45]} {[%emt
00:00:02]} Bxb3 {[%clk 00:04:45]} {[%emt 00:00:04]} 26. Nf6+ {[%clk 00:04:25]}
{[%emt 00:00:30]} Kf8 {[%clk 00:04:51]} {[%emt 00:00:04]} 27. f4 {[%clk
00:04:03]} {[%emt 00:00:32]} a5 {[%clk 00:04:29]} {[%emt 00:00:32]} 28. f5
{[%clk 00:04:10]} {[%emt 00:00:02]} g5 {[%clk 00:04:25]} {[%emt 00:00:14]} 29.
Qxg5 {[%clk 00:04:18]} {[%emt 00:00:03]} Bh8 {[%clk 00:02:06]} {[%emt
00:02:28]} 30. Rf4 {[%clk 00:04:06]} {[%emt 00:00:22]} a4 {[%clk 00:01:40]}
{[%emt 00:00:37]} 31. Re4 {[%clk 00:03:58]} {[%emt 00:00:17]} 1-0